[Event "Live Chess"]
[Site "Chess.com"]
[Date "2023.05.21"]
[Round "-"]
[White "TKDRyan"]
[Black "JackCheetham1"]
[Result "0-1"]
[WhiteElo "1129"]
[BlackElo "1689"]
[TimeControl "300"]
[EndTime "3:13:26 PDT"]
[Termination "JackCheetham1 won by checkmate"]

1. e4 {[%clk 0:04:55.6]} 1... c5 {[%clk 0:04:58.9]} 2. Nf3 {[%clk 0:04:54.8]}
2... d6 {[%clk 0:04:58.1]} 3. d4 {[%clk 0:04:54.4]} 3... cxd4 {[%clk 0:04:58]}
4. Nxd4 {[%clk 0:04:53.7]} 4... Nf6 {[%clk 0:04:57.5]} 5. Nc3 {[%clk 0:04:52.7]}
5... g6 {[%clk 0:04:57.1]} 6. Bd3 {[%clk 0:04:51.8]} 6... Bg7 {[%clk 0:04:56.6]}
7. Nf3 {[%clk 0:04:51.4]} 7... O-O {[%clk 0:04:56.2]} 8. O-O {[%clk 0:04:50.8]}
8... Bg4 {[%clk 0:04:55.7]} 9. h3 {[%clk 0:04:50.4]} 9... Bxf3 {[%clk
0:04:54.4]} 10. Qxf3 {[%clk 0:04:49.5]} 10... Nc6 {[%clk 0:04:54]} 11. Bg5
{[%clk 0:04:48.5]} 11... h6 {[%clk 0:04:52.4]} 12. Bxf6 {[%clk 0:04:46.3]} 12...
Bxf6 {[%clk 0:04:51.7]} 13. Rfe1 {[%clk 0:04:44.3]} 13... Ne5 {[%clk 0:04:50.5]}
14. Qe2 {[%clk 0:04:42.1]} 14... Nxd3 {[%clk 0:04:49.1]} 15. cxd3 {[%clk
0:04:42]} 15... Bg7 {[%clk 0:04:39.4]} 16. Rad1 {[%clk 0:04:40.8]} 16... e6
{[%clk 0:04:38.3]} 17. a3 {[%clk 0:04:40.1]} 17... Qb6 {[%clk 0:04:36.3]} 18.
Na4 {[%clk 0:04:32.8]} 18... Qb5 {[%clk 0:04:31.6]} 19. Qc2 {[%clk 0:04:31.7]}
19... Rac8 {[%clk 0:04:29.4]} 20. Nc3 {[%clk 0:04:27.4]} 20... Qa5 {[%clk
0:04:20.6]} 21. Qa4 {[%clk 0:04:21.8]} 21... Qb6 {[%clk 0:04:13.6]} 22. Rb1
{[%clk 0:04:10.2]} 22... Bd4 {[%clk 0:04:01]} 23. Rf1 {[%clk 0:04:05]} 23... a6
{[%clk 0:03:39.4]} 24. Ne2 {[%clk 0:03:53.2]} 24... Bg7 {[%clk 0:03:38.2]} 25.
b4 {[%clk 0:03:49]} 25... Qc6 {[%clk 0:03:13.4]} 26. Qxc6 {[%clk 0:03:46.2]}
26... Rxc6 {[%clk 0:03:12.4]} 27. Rfc1 {[%clk 0:03:38.6]} 27... Rfc8 {[%clk
0:03:07.9]} 28. f4 {[%clk 0:03:27.3]} 28... Rxc1+ {[%clk 0:02:53.3]} 29. Nxc1
{[%clk 0:03:25.6]} 29... Rc3 {[%clk 0:02:47.3]} 30. a4 {[%clk 0:03:16.9]} 30...
Bd4+ {[%clk 0:02:38.1]} 31. Kh1 {[%clk 0:03:15.3]} 31... Be3 {[%clk 0:02:37.1]}
32. Ne2 {[%clk 0:03:04.3]} 32... Rxd3 {[%clk 0:02:32.1]} 33. b5 {[%clk
0:03:02.4]} 33... Ra3 {[%clk 0:02:19.6]} 34. bxa6 {[%clk 0:02:58.4]} 34... bxa6
{[%clk 0:02:17.2]} 35. Rb8+ {[%clk 0:02:26.8]} 35... Kg7 {[%clk 0:02:14.4]} 36.
Rd8 {[%clk 0:02:26.3]} 36... Bc5 {[%clk 0:02:06.5]} 37. e5 {[%clk 0:02:22.3]}
37... dxe5 {[%clk 0:01:53.5]} 38. fxe5 {[%clk 0:02:19.3]} 38... Rxa4 {[%clk
0:01:44.5]} 39. Nc3 {[%clk 0:02:12]} 39... Ra1+ {[%clk 0:01:39.5]} 40. Kh2
{[%clk 0:02:10.1]} 40... Be3 {[%clk 0:01:31.3]} 41. Ne4 {[%clk 0:02:07]} 41...
Bf4+ {[%clk 0:01:27.2]} 42. g3 {[%clk 0:02:04.7]} 42... Bxe5 {[%clk 0:01:25.2]}
43. Kg2 {[%clk 0:01:56.1]} 43... a5 {[%clk 0:01:24.3]} 44. g4 {[%clk 0:01:50.4]}
44... a4 {[%clk 0:01:23.1]} 45. g5 {[%clk 0:01:49]} 45... h5 {[%clk 0:01:16.9]}
46. Ra8 {[%clk 0:01:43.8]} 46... a3 {[%clk 0:01:14.1]} 47. Ra5 {[%clk
0:01:43.2]} 47... Bb2 {[%clk 0:01:11.8]} 48. Nd6 {[%clk 0:01:41.7]} 48... Rd1
{[%clk 0:01:05.7]} 49. Ne8+ {[%clk 0:01:38.6]} 49... Kf8 {[%clk 0:01:00.9]} 50.
Ra8 {[%clk 0:01:35.2]} 50... Ke7 {[%clk 0:00:56.4]} 51. Nf6 {[%clk 0:01:31.9]}
51... Rd2+ {[%clk 0:00:54.1]} 52. Kf3 {[%clk 0:01:29.1]} 52... Bxf6 {[%clk
0:00:45]} 53. Ra7+ {[%clk 0:01:25.5]} 53... Kd6 {[%clk 0:00:37.4]} 54. gxf6
{[%clk 0:01:23.8]} 54... a2 {[%clk 0:00:33.4]} 55. Ke3 {[%clk 0:01:01.5]} 55...
Rb2 {[%clk 0:00:27.3]} 56. Kd3 {[%clk 0:00:54.7]} 56... Ke5 {[%clk 0:00:24.1]}
57. Kc3 {[%clk 0:00:52.4]} 57... Rh2 {[%clk 0:00:22.8]} 58. Kb3 {[%clk
0:00:48.1]} 58... Kxf6 {[%clk 0:00:21.1]} 59. h4 {[%clk 0:00:42.8]} 59... Kf5
{[%clk 0:00:16.9]} 60. Ra5+ {[%clk 0:00:38.8]} 60... Kf6 {[%clk 0:00:13.2]} 61.
Ra4 {[%clk 0:00:32.3]} 61... e5 {[%clk 0:00:10]} 62. Ra6+ {[%clk 0:00:30.2]}
62... Kf5 {[%clk 0:00:09]} 63. Ra5 {[%clk 0:00:28.5]} 63... f6 {[%clk
0:00:08.1]} 64. Ra4 {[%clk 0:00:26.3]} 64... e4 {[%clk 0:00:07.1]} 65. Ra5+
{[%clk 0:00:25.3]} 65... Kf4 {[%clk 0:00:06.6]} 66. Ra4 {[%clk 0:00:24.6]} 66...
Rh3+ {[%clk 0:00:06.2]} 67. Kxa2 {[%clk 0:00:23.2]} 67... Rh2+ {[%clk
0:00:05.8]} 68. Kb3 {[%clk 0:00:22.2]} 68... Kf3 {[%clk 0:00:05.7]} 69. Ra2
{[%clk 0:00:19.7]} 69... Rxa2 {[%clk 0:00:03.9]} 70. Kxa2 {[%clk 0:00:18.5]}
70... e3 {[%clk 0:00:03.8]} 71. Kb3 {[%clk 0:00:18.4]} 71... e2 {[%clk
0:00:03.7]} 72. Kc4 {[%clk 0:00:18.2]} 72... e1=Q {[%clk 0:00:03.6]} 73. Kd5
{[%clk 0:00:18]} 73... Qh1 {[%clk 0:00:03.4]} 74. Kd6 {[%clk 0:00:17.9]} 74...
Qxh4 {[%clk 0:00:03.2]} 75. Ke7 {[%clk 0:00:17.2]} 75... Qg3 {[%clk 0:00:03.1]}
76. Kf7 {[%clk 0:00:16.8]} 76... h4 {[%clk 0:00:03]} 77. Kxf6 {[%clk 0:00:15.7]}
77... h3 {[%clk 0:00:02.9]} 78. Kg7 {[%clk 0:00:15]} 78... h2 {[%clk 0:00:02.8]}
79. Kf7 {[%clk 0:00:14.5]} 79... h1=Q {[%clk 0:00:02.7]} 80. Ke6 {[%clk
0:00:14.2]} 80... Qf1 {[%clk 0:00:02.6]} 81. Kd7 {[%clk 0:00:13.4]} 81... Kg2
{[%clk 0:00:02.5]} 82. Kc6 {[%clk 0:00:13]} 82... Qgf2 {[%clk 0:00:02.4]} 83.
Kd5 {[%clk 0:00:12.2]} 83... Q1e1 {[%clk 0:00:02.3]} 84. Kd6 {[%clk 0:00:11.8]}
84... Qfd2+ {[%clk 0:00:02.2]} 85. Kc6 {[%clk 0:00:10.7]} 85... Qec1+ {[%clk
0:00:02.1]} 86. Kb5 {[%clk 0:00:10.3]} 86... Qdb2+ {[%clk 0:00:02]} 87. Ka4
{[%clk 0:00:10]} 87... Qca1# {[%clk 0:00:01.9]} 0-1

[Event "Live Chess"]
[Site "Chess.com"]
[Date "2023.05.21"]
[Round "-"]
[White "Geomorph"]
[Black "Bunny55"]
[Result "1-0"]
[WhiteElo "1273"]
[BlackElo "945"]
[TimeControl "300"]
[EndTime "3:13:27 PDT"]
[Termination "Geomorph won by resignation"]

1. e4 {[%clk 0:04:59.2]} 1... c5 {[%clk 0:04:30.9]} 2. Nf3 {[%clk 0:04:57.1]}
2... d6 {[%clk 0:04:28.2]} 3. d4 {[%clk 0:04:55]} 3... cxd4 {[%clk 0:04:27]} 4.
Qxd4 {[%clk 0:04:54.1]} 4... Nc6 {[%clk 0:04:22.3]} 5. Bb5 {[%clk 0:04:52.5]}
5... Bd7 {[%clk 0:04:20.5]} 6. Bxc6 {[%clk 0:04:37.8]} 6... Bxc6 {[%clk
0:04:18.8]} 7. Nc3 {[%clk 0:04:37.4]} 7... e5 {[%clk 0:04:14.9]} 8. Qd3 {[%clk
0:04:34.3]} 8... Nf6 {[%clk 0:04:10.9]} 9. Bg5 {[%clk 0:04:33.1]} 9... Be7
{[%clk 0:04:09.7]} 10. O-O-O {[%clk 0:04:31.5]} 10... O-O {[%clk 0:04:08.2]} 11.
Bxf6 {[%clk 0:04:28.7]} 11... Bxf6 {[%clk 0:04:06.4]} 12. Qxd6 {[%clk
0:04:27.6]} 12... Qxd6 {[%clk 0:04:04]} 13. Rxd6 {[%clk 0:04:26.2]} 13... Rad8
{[%clk 0:04:01.7]} 14. Rhd1 {[%clk 0:04:21.6]} 14... a6 {[%clk 0:03:54.3]} 15.
Rxd8 {[%clk 0:04:17.8]} 15... Bxd8 {[%clk 0:03:51.5]} 16. Rxd8 {[%clk
0:04:16.7]} 16... Rxd8 {[%clk 0:03:48.7]} 17. Nxe5 {[%clk 0:04:15.2]} 17... Re8
{[%clk 0:03:42.5]} 18. Nxc6 {[%clk 0:04:10]} 18... bxc6 {[%clk 0:03:39.3]} 19.
f3 {[%clk 0:04:09.6]} 19... g6 {[%clk 0:03:33]} 20. Na4 {[%clk 0:04:07.4]} 20...
f5 {[%clk 0:03:27.8]} 21. Nc5 {[%clk 0:04:02.8]} 21... fxe4 {[%clk 0:03:24.3]}
22. Nxe4 {[%clk 0:04:01.7]} 22... Re5 {[%clk 0:03:15.9]} 23. c4 {[%clk
0:03:56.5]} 23... Kf7 {[%clk 0:03:13.6]} 24. b4 {[%clk 0:03:50]} 24... Ke6
{[%clk 0:03:11.4]} 25. Kc2 {[%clk 0:03:44.2]} 25... g5 {[%clk 0:03:08.1]} 26.
Kc3 {[%clk 0:03:38.9]} 26... h5 {[%clk 0:03:05.7]} 27. Kd4 {[%clk 0:03:33.2]}
27... g4 {[%clk 0:02:56.7]} 28. Nc5+ {[%clk 0:03:31]} 28... Kd6 {[%clk
0:02:52.6]} 29. Nxa6 {[%clk 0:03:26.9]} 29... Re2 {[%clk 0:02:41.3]} 30. fxg4
{[%clk 0:03:13.4]} 30... hxg4 {[%clk 0:02:38.5]} 31. h3 {[%clk 0:02:58.1]} 31...
gxh3 {[%clk 0:02:34.7]} 32. gxh3 {[%clk 0:02:56.3]} 32... Rh2 {[%clk 0:02:29.2]}
33. a4 {[%clk 0:02:53.2]} 33... Rxh3 {[%clk 0:02:27]} 34. Nc5 {[%clk 0:02:50.7]}
34... Rh4+ {[%clk 0:02:23.7]} 35. Ne4+ {[%clk 0:02:49.4]} 35... Ke6 {[%clk
0:02:10]} 36. a5 {[%clk 0:02:47.1]} 36... Kf5 {[%clk 0:02:07.9]} 37. a6 {[%clk
0:02:41.3]} 37... Rxe4+ {[%clk 0:02:05.9]} 38. Kc5 {[%clk 0:02:40.5]} 38... Re8
{[%clk 0:02:02.7]} 39. Kxc6 {[%clk 0:02:36.8]} 39... Ra8 {[%clk 0:01:54.6]} 40.
Kb7 {[%clk 0:02:35.5]} 40... Re8 {[%clk 0:01:51]} 41. c5 {[%clk 0:02:26.8]}
41... Ke5 {[%clk 0:01:49.6]} 42. c6 {[%clk 0:02:25.7]} 42... Kd5 {[%clk
0:01:48.5]} 43. c7 {[%clk 0:02:24.3]} 43... Re7 {[%clk 0:01:45.7]} 44. a7 {[%clk
0:02:21.9]} 44... Kc4 {[%clk 0:01:40.9]} 45. a8=Q {[%clk 0:02:20.7]} 45... Kxb4
{[%clk 0:01:37.8]} 46. Qd8 {[%clk 0:02:16.3]} 46... Re5 {[%clk 0:01:31.5]} 47.
Qd4+ {[%clk 0:02:09.9]} 1-0

[Event "Live Chess"]
[Site "Chess.com"]
[Date "2023.05.21"]
[Round "-"]
[White "AttackingSnowLeopard"]
[Black "gmnorfolk"]
[Result "1/2-1/2"]
[WhiteElo "2197"]
[BlackElo "2123"]
[TimeControl "300"]
[EndTime "3:13:33 PDT"]
[Termination "Game drawn - insufficient material"]

1. d4 {[%clk 0:04:58.2]} 1... Nf6 {[%clk 0:04:58.7]} 2. c4 {[%clk 0:04:57]} 2...
e6 {[%clk 0:04:56.4]} 3. Nf3 {[%clk 0:04:56.2]} 3... d5 {[%clk 0:04:54.9]} 4.
Nc3 {[%clk 0:04:55.1]} 4... c6 {[%clk 0:04:53.6]} 5. e3 {[%clk 0:04:53.9]} 5...
Nbd7 {[%clk 0:04:51.9]} 6. Qc2 {[%clk 0:04:53.6]} 6... Bd6 {[%clk 0:04:50]} 7.
b3 {[%clk 0:04:53.3]} 7... O-O {[%clk 0:04:48.1]} 8. Be2 {[%clk 0:04:52.5]} 8...
b6 {[%clk 0:04:47.5]} 9. O-O {[%clk 0:04:51.5]} 9... Bb7 {[%clk 0:04:47.1]} 10.
Bb2 {[%clk 0:04:50.3]} 10... Qe7 {[%clk 0:04:44.4]} 11. a4 {[%clk 0:04:47.7]}
11... a5 {[%clk 0:04:42.4]} 12. Rad1 {[%clk 0:04:43]} 12... Rac8 {[%clk
0:04:40.3]} 13. h3 {[%clk 0:04:41.7]} 13... Rfd8 {[%clk 0:04:31.5]} 14. Rfe1
{[%clk 0:04:39.7]} 14... e5 {[%clk 0:04:28.8]} 15. cxd5 {[%clk 0:04:31.3]} 15...
Nxd5 {[%clk 0:04:22.5]} 16. dxe5 {[%clk 0:04:28]} 16... Nxe5 {[%clk 0:04:17.7]}
17. Nxd5 {[%clk 0:04:25.4]} 17... cxd5 {[%clk 0:04:12.2]} 18. Qf5 {[%clk
0:04:15.7]} 18... g6 {[%clk 0:04:05.6]} 19. Qb1 {[%clk 0:04:08]} 19... Nxf3+
{[%clk 0:04:00.8]} 20. Bxf3 {[%clk 0:04:06.3]} 20... Bb4 {[%clk 0:03:58.9]} 21.
Re2 {[%clk 0:03:59.6]} 21... Bc3 {[%clk 0:03:37.8]} 22. Rc2 {[%clk 0:03:50.5]}
22... d4 {[%clk 0:03:09.4]} 23. Bxb7 {[%clk 0:03:40.1]} 23... Qxb7 {[%clk
0:03:02.2]} 24. Bxc3 {[%clk 0:03:33.9]} 24... dxc3 {[%clk 0:02:57.5]} 25. Rxd8+
{[%clk 0:03:31.5]} 25... Rxd8 {[%clk 0:02:56.7]} 26. Rxc3 {[%clk 0:03:31.1]}
26... b5 {[%clk 0:02:51.6]} 27. axb5 {[%clk 0:03:27.3]} 27... Qxb5 {[%clk
0:02:50.1]} 28. Qc2 {[%clk 0:03:24.3]} 28... Rb8 {[%clk 0:02:45.5]} 29. Rc8+
{[%clk 0:03:22]} 29... Rxc8 {[%clk 0:02:39.8]} 30. Qxc8+ {[%clk 0:03:20.4]}
30... Kg7 {[%clk 0:02:39.1]} 31. Qc3+ {[%clk 0:03:19.5]} 31... Kg8 {[%clk
0:02:35.8]} 32. h4 {[%clk 0:03:06.7]} 32... h5 {[%clk 0:02:31]} 33. e4 {[%clk
0:03:00.8]} 33... a4 {[%clk 0:02:21.5]} 34. bxa4 {[%clk 0:02:59]} 34... Qxa4
{[%clk 0:02:18]} 35. Qe5 {[%clk 0:02:50.3]} 35... Qd1+ {[%clk 0:02:13.5]} 36.
Kh2 {[%clk 0:02:48.3]} 36... Qe2 {[%clk 0:02:08.8]} 37. f3 {[%clk 0:02:45]}
37... Qe1 {[%clk 0:02:02.2]} 38. Qf6 {[%clk 0:02:34.3]} 38... Qe3 {[%clk
0:01:55.8]} 39. e5 {[%clk 0:02:06.4]} 39... Qd3 {[%clk 0:01:47.8]} 40. Kh3
{[%clk 0:01:41.9]} 40... Qd7+ {[%clk 0:01:45.6]} 41. e6 {[%clk 0:01:33.4]} 41...
Qxe6+ {[%clk 0:01:38]} 42. Qxe6 {[%clk 0:01:32.3]} 42... fxe6 {[%clk 0:01:37.8]}
43. Kg3 {[%clk 0:01:30.8]} 43... Kf7 {[%clk 0:01:35.8]} 44. Kf4 {[%clk
0:01:30.2]} 44... Kf6 {[%clk 0:01:29.9]} 45. g4 {[%clk 0:01:20.4]} 45... hxg4
{[%clk 0:01:23.5]} 46. fxg4 {[%clk 0:01:17.1]} 46... g5+ {[%clk 0:01:18.8]} 47.
hxg5+ {[%clk 0:01:13.7]} 47... Kg6 {[%clk 0:01:17.9]} 48. Ke5 {[%clk 0:01:12.8]}
48... Kxg5 {[%clk 0:01:12]} 49. Kxe6 {[%clk 0:01:12.7]} 49... Kxg4 {[%clk
0:01:11.2]} 1/2-1/2

[Event "Live Chess"]
[Site "Chess.com"]
[Date "2023.05.21"]
[Round "-"]
[White "LL220284LL"]
[Black "SupremeTactician"]
[Result "1-0"]
[WhiteElo "2322"]
[BlackElo "2225"]
[TimeControl "300"]
[EndTime "3:13:36 PDT"]
[Termination "LL220284LL won by resignation"]

1. Nf3 {[%clk 0:04:58.4]} 1... Nf6 {[%clk 0:04:59]} 2. b3 {[%clk 0:04:57.8]}
2... e6 {[%clk 0:04:58.5]} 3. Bb2 {[%clk 0:04:57.6]} 3... Be7 {[%clk 0:04:57.9]}
4. d4 {[%clk 0:04:56.4]} 4... d5 {[%clk 0:04:57.6]} 5. e3 {[%clk 0:04:55.8]}
5... b6 {[%clk 0:04:57.3]} 6. Bd3 {[%clk 0:04:55.4]} 6... O-O {[%clk 0:04:56.9]}
7. O-O {[%clk 0:04:55]} 7... h6 {[%clk 0:04:56.7]} 8. Nbd2 {[%clk 0:04:53.7]}
8... Bb7 {[%clk 0:04:56.4]} 9. Re1 {[%clk 0:04:52.7]} 9... Nbd7 {[%clk
0:04:56.3]} 10. c4 {[%clk 0:04:51.2]} 10... Re8 {[%clk 0:04:55]} 11. Rc1 {[%clk
0:04:50.1]} 11... c5 {[%clk 0:04:54]} 12. cxd5 {[%clk 0:04:48.3]} 12... exd5
{[%clk 0:04:53.9]} 13. Qe2 {[%clk 0:04:47.4]} 13... Rc8 {[%clk 0:04:52.5]} 14.
Ne5 {[%clk 0:04:45.8]} 14... Nxe5 {[%clk 0:04:50.5]} 15. dxe5 {[%clk 0:04:45.2]}
15... Ne4 {[%clk 0:04:50.4]} 16. Nxe4 {[%clk 0:04:43.3]} 16... dxe4 {[%clk
0:04:50.3]} 17. Bb5 {[%clk 0:04:39.5]} 17... Bc6 {[%clk 0:04:49.5]} 18. Red1
{[%clk 0:04:38.6]} 18... Qc7 {[%clk 0:04:48.3]} 19. Bc4 {[%clk 0:04:35.1]} 19...
Rcd8 {[%clk 0:04:45.5]} 20. e6 {[%clk 0:04:33.8]} 20... fxe6 {[%clk 0:04:36.2]}
21. Qg4 {[%clk 0:04:26.8]} 21... Rxd1+ {[%clk 0:04:28.7]} 22. Rxd1 {[%clk
0:04:24.2]} 22... Bd6 {[%clk 0:04:19.4]} 23. Rxd6 {[%clk 0:04:19.8]} 23... Bd5
{[%clk 0:04:15.8]} 24. Bxd5 {[%clk 0:04:12.6]} 24... exd5 {[%clk 0:04:15.7]} 25.
Rd7 {[%clk 0:04:11.1]} 1-0

[Event "Live Chess"]
[Site "Chess.com"]
[Date "2023.05.21"]
[Round "-"]
[White "Tech_Titan"]
[Black "EdenHazard8"]
[Result "0-1"]
[WhiteElo "934"]
[BlackElo "1963"]
[TimeControl "300"]
[EndTime "3:13:42 PDT"]
[Termination "EdenHazard8 won by checkmate"]

1. c4 {[%clk 0:04:49.5]} 1... e5 {[%clk 0:04:58.9]} 2. Nc3 {[%clk 0:04:41.2]}
2... Nc6 {[%clk 0:04:58]} 3. e4 {[%clk 0:04:39.6]} 3... f5 {[%clk 0:04:57.1]} 4.
exf5 {[%clk 0:04:23.6]} 4... Nf6 {[%clk 0:04:55.9]} 5. g4 {[%clk 0:04:13.2]}
5... Bc5 {[%clk 0:04:54.6]} 6. d3 {[%clk 0:03:52.1]} 6... O-O {[%clk 0:04:52.5]}
7. Bg2 {[%clk 0:03:40.3]} 7... Nd4 {[%clk 0:04:48.1]} 8. h3 {[%clk 0:03:29.2]}
8... c6 {[%clk 0:04:43.9]} 9. Nf3 {[%clk 0:03:18.1]} 9... Nxf3+ {[%clk
0:04:40.4]} 10. Qxf3 {[%clk 0:03:05.4]} 10... d5 {[%clk 0:04:39.1]} 11. cxd5
{[%clk 0:02:54]} 11... Re8 {[%clk 0:04:36.8]} 12. dxc6 {[%clk 0:02:45.4]} 12...
e4 {[%clk 0:04:35.3]} 13. dxe4 {[%clk 0:02:38.6]} 13... bxc6 {[%clk 0:04:32.6]}
14. O-O {[%clk 0:02:30.2]} 14... Ba6 {[%clk 0:04:27.7]} 15. Rd1 {[%clk
0:02:18.6]} 15... Qa5 {[%clk 0:04:25.8]} 16. g5 {[%clk 0:02:09.9]} 16... Nxe4
{[%clk 0:04:04.9]} 17. Nxe4 {[%clk 0:02:02]} 17... Bb6 {[%clk 0:04:03.2]} 18. f6
{[%clk 0:01:45.7]} 18... Rf8 {[%clk 0:03:59.6]} 19. Rd7 {[%clk 0:01:22]} 19...
g6 {[%clk 0:03:47]} 20. Nd6 {[%clk 0:01:07.8]} 20... Qe1+ {[%clk 0:03:41.7]} 21.
Kh2 {[%clk 0:01:04]} 21... Bxf2 {[%clk 0:03:39.1]} 22. f7+ {[%clk 0:01:00.4]}
22... Kh8 {[%clk 0:03:34.8]} 23. b3 {[%clk 0:00:48.2]} 23... Qg1# {[%clk
0:03:32.1]} 0-1

[Event "Live Chess"]
[Site "Chess.com"]
[Date "2023.05.21"]
[Round "-"]
[White "nigelst"]
[Black "RichardABates"]
[Result "0-1"]
[WhiteElo "1712"]
[BlackElo "2101"]
[TimeControl "300"]
[EndTime "3:13:42 PDT"]
[Termination "RichardABates won by resignation"]

1. e4 {[%clk 0:04:58.1]} 1... c5 {[%clk 0:04:58.5]} 2. Nf3 {[%clk 0:04:57]} 2...
d6 {[%clk 0:04:57.4]} 3. Bb5+ {[%clk 0:04:55.5]} 3... Bd7 {[%clk 0:04:56.4]} 4.
Bxd7+ {[%clk 0:04:53.9]} 4... Qxd7 {[%clk 0:04:55.7]} 5. O-O {[%clk 0:04:53.3]}
5... Nc6 {[%clk 0:04:54.9]} 6. c3 {[%clk 0:04:52.3]} 6... Nf6 {[%clk 0:04:53.5]}
7. Qe2 {[%clk 0:04:45.3]} 7... e6 {[%clk 0:04:51.7]} 8. d4 {[%clk 0:04:41.9]}
8... cxd4 {[%clk 0:04:50.9]} 9. cxd4 {[%clk 0:04:41.1]} 9... d5 {[%clk
0:04:50.1]} 10. e5 {[%clk 0:04:39.2]} 10... Ne4 {[%clk 0:04:49.2]} 11. Nc3
{[%clk 0:04:36.7]} 11... Nxc3 {[%clk 0:04:40.1]} 12. bxc3 {[%clk 0:04:35]} 12...
Be7 {[%clk 0:04:32.5]} 13. Bg5 {[%clk 0:04:33.4]} 13... Rc8 {[%clk 0:04:28.5]}
14. Qe3 {[%clk 0:04:28.8]} 14... O-O {[%clk 0:04:22.5]} 15. Rac1 {[%clk
0:04:24.8]} 15... Na5 {[%clk 0:04:19.3]} 16. Bxe7 {[%clk 0:04:21.8]} 16... Qxe7
{[%clk 0:04:18.2]} 17. Qg5 {[%clk 0:04:16.8]} 17... Qxg5 {[%clk 0:04:15.8]} 18.
Nxg5 {[%clk 0:04:15.3]} 18... Rc6 {[%clk 0:04:13.6]} 19. Nh3 {[%clk 0:04:02.4]}
19... Rfc8 {[%clk 0:04:10.6]} 20. Nf4 {[%clk 0:04:00.9]} 20... Rxc3 {[%clk
0:04:09.1]} 21. Rxc3 {[%clk 0:03:59.9]} 21... Rxc3 {[%clk 0:04:07.7]} 22. Rb1
{[%clk 0:03:50.7]} 22... h6 {[%clk 0:03:58.2]} 23. h3 {[%clk 0:03:46.7]} 23...
a6 {[%clk 0:03:56.2]} 24. Kf1 {[%clk 0:03:36.1]} 24... b5 {[%clk 0:03:54.4]} 25.
Ke1 {[%clk 0:03:31.7]} 25... Nc4 {[%clk 0:03:52.2]} 26. a4 {[%clk 0:03:16.3]}
26... bxa4 {[%clk 0:03:49.2]} 27. Ne2 {[%clk 0:03:05.5]} 27... Rb3 {[%clk
0:03:46.5]} 28. Ra1 {[%clk 0:03:01.1]} 28... a3 {[%clk 0:03:44.7]} 29. Nc1
{[%clk 0:02:57.7]} 29... Rb2 {[%clk 0:03:41.9]} 30. Nd3 {[%clk 0:02:52]} 30...
a5 {[%clk 0:03:32.4]} 31. Nxb2 {[%clk 0:02:45.2]} 31... axb2 {[%clk 0:03:30.9]}
32. Rb1 {[%clk 0:02:43.1]} 32... a4 {[%clk 0:03:29.5]} 33. Kd1 {[%clk
0:02:42.3]} 33... a3 {[%clk 0:03:27.6]} 34. Kc2 {[%clk 0:02:41.2]} 34... a2
{[%clk 0:03:26.6]} 35. Rxb2 {[%clk 0:02:38.6]} 35... a1=Q {[%clk 0:03:24.4]} 36.
Rb8+ {[%clk 0:02:35]} 36... Kh7 {[%clk 0:03:23]} 0-1

[Event "Live Chess"]
[Site "Chess.com"]
[Date "2023.05.21"]
[Round "-"]
[White "Lewstar1"]
[Black "yeetpizza74"]
[Result "0-1"]
[WhiteElo "434"]
[BlackElo "502"]
[TimeControl "300"]
[EndTime "3:13:44 PDT"]
[Termination "yeetpizza74 won on time"]

1. e4 {[%clk 0:04:58.3]} 1... c6 {[%clk 0:04:58.6]} 2. Nf3 {[%clk 0:04:57.5]}
2... d5 {[%clk 0:04:56.9]} 3. exd5 {[%clk 0:04:55]} 3... cxd5 {[%clk 0:04:55.9]}
4. Nc3 {[%clk 0:04:51.8]} 4... Bg4 {[%clk 0:04:54.3]} 5. d4 {[%clk 0:03:52.8]}
5... Nf6 {[%clk 0:04:49.4]} 6. Bf4 {[%clk 0:03:40.3]} 6... Nc6 {[%clk
0:04:42.2]} 7. Nb5 {[%clk 0:03:34.5]} 7... Rc8 {[%clk 0:04:32.3]} 8. Be2 {[%clk
0:03:13.2]} 8... Bxf3 {[%clk 0:04:29.9]} 9. Bxf3 {[%clk 0:03:11.4]} 9... a6
{[%clk 0:04:17.8]} 10. Nc3 {[%clk 0:03:00.2]} 10... Nb4 {[%clk 0:04:08.9]} 11.
O-O {[%clk 0:02:55.9]} 11... e6 {[%clk 0:03:52.6]} 12. Qd2 {[%clk 0:02:43.5]}
12... Nc6 {[%clk 0:03:45.4]} 13. Rae1 {[%clk 0:02:35.3]} 13... Bb4 {[%clk
0:03:43.7]} 14. Be5 {[%clk 0:02:26]} 14... Bxc3 {[%clk 0:03:34]} 15. Qxc3 {[%clk
0:02:22.3]} 15... Nxe5 {[%clk 0:03:32]} 16. Qa3 {[%clk 0:01:52.1]} 16... Nxf3+
{[%clk 0:03:29.1]} 17. gxf3 {[%clk 0:01:49.7]} 17... Rxc2 {[%clk 0:03:20.1]} 18.
Qa4+ {[%clk 0:01:44.5]} 18... Rc6 {[%clk 0:03:14.9]} 19. Qc2 {[%clk 0:01:44.4]}
19... Rxc2 {[%clk 0:03:11.5]} 20. Rc1 {[%clk 0:01:36.9]} 20... Rxc1 {[%clk
0:03:09.8]} 21. Rxc1 {[%clk 0:01:34.8]} 21... O-O {[%clk 0:03:07.6]} 22. b4
{[%clk 0:01:25.3]} 22... a5 {[%clk 0:03:03.8]} 23. b5 {[%clk 0:01:17.7]} 23...
b6 {[%clk 0:03:02.3]} 24. a4 {[%clk 0:01:16.4]} 24... Qe7 {[%clk 0:02:56.4]} 25.
Rc6 {[%clk 0:01:07.3]} 25... e5 {[%clk 0:02:52.3]} 26. dxe5 {[%clk 0:01:04.4]}
26... Qxe5 {[%clk 0:02:50.6]} 27. Rxb6 {[%clk 0:01:03.1]} 27... Qf4 {[%clk
0:02:47.2]} 28. Ra6 {[%clk 0:00:51.3]} 28... Qxf3 {[%clk 0:02:44.1]} 29. Rxa5
{[%clk 0:00:50.5]} 29... Re8 {[%clk 0:02:41.4]} 30. Kf1 {[%clk 0:00:41.4]} 30...
Qe2+ {[%clk 0:02:38.3]} 31. Kg2 {[%clk 0:00:39]} 31... d4 {[%clk 0:02:34.1]} 32.
b6 {[%clk 0:00:33.3]} 32... Rb8 {[%clk 0:02:30.4]} 33. h3 {[%clk 0:00:27]} 33...
Rxb6 {[%clk 0:02:26.3]} 34. Ra8+ {[%clk 0:00:24.8]} 34... Ne8 {[%clk 0:02:13.8]}
35. a5 {[%clk 0:00:17.7]} 35... Rb2 {[%clk 0:02:10]} 36. Kg3 {[%clk 0:00:03]}
36... Qxf2+ {[%clk 0:02:07.4]} 0-1